{"text_format":"1","workbook":"xlsx","n_sheets":9,"sheets":["DATI","iscrizione","liberatoria","autoriz.","Regol. (2)","iscriz.magg","liber.magg","autor.magg","Regol. (3)"],"not_rendered":{"charts":0,"images":2,"macros":1,"external_links":0,"defined_names":145,"comments":0,"pivot_tables":0},"unopened":[],"bounds":{"document_bytes":16777216,"sheet_cells":100000,"rows_first":2000,"rows_last":500,"rows_between":2000,"halvings":0,"cell_chars":16384,"cell_head_chars":4096},"cells_cut":0,"cells_raw":0,"read":"whole","date_system":"1900"}

{"sheet":"DATI","index":0,"n_rows":13,"n_cols":20,"rows_kept":13,"cut":false,"hidden":false,"merged":[[52,0,53,15],[55,12,55,15],[40,0,40,7],[29,0,29,4],[45,0,46,15],[29,10,29,15],[47,0,47,7],[47,8,47,14],[49,13,49,15],[49,0,49,7],[32,10,32,15],[32,1,32,7],[26,0,26,7],[26,10,26,15],[10,4,10,12],[10,14,10,15],[13,0,13,15],[14,0,14,15],[18,1,18,15],[20,0,20,15],[22,0,22,8],[22,12,22,15],[24,0,24,13],[0,19,0,21],[1,0,1,15],[8,4,8,15],[5,4,5,15],[3,4,3,15]]}
[null,null,null,null,null,null,null,null,null,null,null,null,null,null,null,null,null,null,null,"INSERIRE I DATI DELL'ATLETA"]
[null,null,null,null,null,null,null,null,null,null,null,null,null,null,null,null,null,null,null,"Cognome"]
[null,null,null,null,null,null,null,null,null,null,null,null,null,null,null,null,null,null,null,"Nome"]
[null,null,null,null,null,null,null,null,null,null,null,null,null,null,null,null,null,null,null,"Nato/a a"]
[null,null,null,null,null,null,null,null,null,null,null,null,null,null,null,null,null,null,null,"il"]
[null,null,null,null,null,null,null,null,null,null,null,null,null,null,null,null,null,null,null,"Residente a"]
[null,null,null,null,null,null,null,null,null,null,null,null,null,null,null,null,null,null,null,"CAP"]
[null,null,null,null,null,null,null,null,null,null,null,null,null,null,null,null,null,null,null,"Via"]
[null,null,null,null,null,null,null,null,null,null,null,null,null,null,null,null,null,null,null,"Genitore se minorenne"]
[null,null,null,null,null,null,null,null,null,null,null,null,null,null,null,null,null,null,null,"Tessera "]
[null,null,null,null,null,null,null,null,null,null,null,null,null,null,null,null,null,null,null,"Codice Fiscale"]
[null,null,null,null,null,null,null,null,null,null,null,null,null,null,null,null,null,null,null,"Cellulare"]
[null,null,null,null,null,null,null,null,null,null,null,null,null,null,null,null,null,null,null,"E-mail"]

{"sheet":"iscrizione","index":1,"n_rows":86,"n_cols":43,"rows_kept":86,"cut":false,"hidden":false,"merged":[[48,0,48,33],[55,2,57,33],[71,16,72,33],[77,2,79,33],[50,28,50,33],[51,17,51,33],[51,0,51,15],[14,37,14,43],[17,4,17,13],[17,18,17,33],[19,21,19,33],[19,4,19,13],[15,4,15,13],[39,4,39,14],[85,4,85,13],[1,0,1,31],[13,4,13,13],[13,18,13,33],[15,16,15,19],[15,26,15,33],[27,2,29,33],[31,2,31,33],[30,2,30,20],[24,0,25,33],[20,19,20,29],[82,16,83,33],[47,21,47,32],[60,16,61,33],[66,2,68,33]]}
[]
["DOMANDA DI ISCRIZIONE STAGIONE 2023\nAGONISTI - MINORENNI"]
[]
[]
[null,null,null,null,null,null,null,null,null,null,null,null,null,null,null,null,null,null,null,null,"Spett.le"]
[null,null,null,null,null,null,null,null,null,null,null,null,null,null,null,null,null,null,null,null,"Consiglio Direttivo"]
[null,null,null,null,null,null,null,null,null,null,null,null,null,null,null,null,null,null,null,null,"A.S.D. TEAM BYKERS VIGGIANO"]
[null,null,null,null,null,null,null,null,null,null,null,null,null,null,null,null,null,null,null,null,"VIA MARGHERITA DI SAVOIA, SNC - "]
[null,null,null,null,null,null,null,null,null,null,null,null,null,null,null,null,null,null,null,null,"85059 VIGGIANO (PZ)"]
[]
[null,null,null,null,null,null,null,null,null,null,null,null,null,null,null,null,null,null,null,null,null,null,null,null,null,null,null,null,null,null,null,null,null,null,null,null,null,null,null,null,null,null,"Cliccando \"Salva\""]
["DATI DEL MINORE",null,null,null,null,null,null,null,null,null,null,null,null,null,null,null,null,null,null,null,null,null,null,null,null,null,null,null,null,null,null,null,null,null,null,null,null,null,null,"Verrà salvata una copia in pdf tuo Desktop"]
[]
["Cognome",null,null,null,{"$f":"DATI!V2","v":0},null,null,null,null,null,null,null,null,null,null,"Nome",null,null,{"$f":"DATI!V3","v":0}]
[]
["Nato/a a",null,null,null,{"$f":"DATI!V4","v":0},null,null,null,null,null,null,null,null,null,null,"il",{"$f":"DATI!il.giorno","v":"00:00:00"},null,null,null,null,"Residente a",null,null,null,null,{"$f":"DATI!V6","v":"00:00:00"}]
[]
["Via/Piazza",null,null,null,{"$f":"DATI!V8","v":0},null,null,null,null,null,null,null,null,null,null,"Cell.:",null,null,{"$f":"DATI!V12","v":0}]
[]
["Tessera N°",null,null,null,{"$f":"DATI!V10","v":0},null,null,null,null,null,null,null,null,null,null,"Codice Fiscale",null,null,null,null,null,{"$f":"DATI!V11","v":0}]
[]
[]
[]
["Il/la Sottoscritto/a",null,null,null,null,null,null,{"$f":"DATI!padre.madre","v":0},null,null,null,null,null,null,null,null,null,null,null,null,null,null,null,null,null,"in qualità di padre/madre"]
["CHIEDE al Direttivo dell'associazione A.S.D. Team Bykers Viggiano che il PROPRIO FIGLIO  venga ammesso/a nella qualità di ciclista non professionista, e, all'uopo DICHIARA"]
[]
[]
[null,"•","Di conoscere lo Statuto ed il regolamento della stessa Associazione e della F.C.I. e di accettarli integralmente.\nDi accettare, in base a quanto previsto dal Codice Civile sull’esercizio della patri podestà, il tesseramento alla Associazione sportiva A.S.D. Team Bykers Viggiano il proprio figlio"]
[]
[null,"•"]
[null,null,{"$f":"DATI!V2&\" \"&DATI!V3","v":" "}]
[null,"•","Di conoscere e concorrere a far rispettare il regolamento predisposto da competenti organi del Coni e della F.C.I. in materia di antidoping.\n\n"]
[]
[]
[]
["Telefono",null,null,null,null,null,null,null,null,null,null,null,null,null,null,null,null,"Cellulare"]
[]
["E-mail",null,null,null,{"$f":"mail","v":0}]
[]
["Data",null,null,null,null,null,null,null,null,null,null,null,null,null,null,null,null,"Firma"]
[]
[]
[]
[]
[]
[]
[]
[]
["CONSENSO AL TRATTAMENTO DEI DATI PERSONALI"]
[]
["Il/la sottoscritto/a ",null,null,null,null,null,{"$f":"DATI!padre.madre","v":0},null,null,null,null,null,null,null,null,null,null,null,null,null,null,null,null,null,null,null,null,null,"padre/madre di"]
[{"$f":"C31","v":" "},null,null,null,null,null,null,null,null,null,null,null,null,null,null,null,null,"avendo ricevuto idoneità informativa ai sensi dell'art."]
["13 del D.Lgs. 196/2003"]
[]
["ACCONSENTE"]
[null,"1.","Al trattamento dei propri dati personali e del/la proprio/a figlio/a, ivi inclusi quelli di natura sensibile, per lo svolgimento delle operazioni connesse alle procedure di affiliazione F.C.I., e di gestione del rapporto assicurativo."]
[]
[]
[]
[]
[null,null,null,null,null,null,null,null,null,null,null,null,null,null,null,null,"Firma dell'interessato (o del soggetto che esercita la potestà legali ai sensi delle disposizioni di legge): "]
[]
[]
[]
[]
[]
[null,"2.","Al trattamento dei propri dati personali e del/la proprio/a figlio/a per l'invio di comunicazioni di natura promozionale inerenti ai servizi ed alle iniziative proposte a qualsiasi livello F.C.I.e dagli Enti e soggetti privati collegati alle manifestazioni sportive"]
[]
[]
[]
[]
[null,null,null,null,null,null,null,null,null,null,null,null,null,null,null,null,"Firma dell'interessato (o del soggetto che esercita la potestà legali ai sensi delle disposizioni di legge): "]
[]
[]
[]
[]
[]
[null,"3.","Anche ai sensi degli artt. 96 e 97 della L. 633/1941, all'utilizzo del materiale audio e video interviste, filmati, fotografie diapositive) realizzato nel corso di eventi e/o manifestazioni sportive allo scopo di promuovere sia le attività del Team Bykers Viggiano, più in generale, l'esercizio della pratica sportiva."]
[]
[]
[]
[]
[null,null,null,null,null,null,null,null,null,null,null,null,null,null,null,null,"Firma dell'interessato (o del soggetto che esercita la potestà legali ai sensi delle disposizioni di legge): "]
[]
[]
["Viggiano lì"]

{"sheet":"liberatoria","index":2,"n_rows":43,"n_cols":30,"rows_kept":43,"cut":false,"hidden":false,"merged":[[27,0,37,33],[42,18,42,29],[44,15,44,32],[16,4,16,13],[18,0,18,33],[21,0,21,33],[22,0,22,33],[25,0,25,33],[39,5,39,12],[17,37,17,43],[1,17,7,33],[9,0,9,33],[14,28,14,33],[16,29,16,33],[16,18,16,26]]}
[]
[null,null,null,null,null,null,null,null,null,null,null,null,null,null,null,null,null,"A.S.D. TEAM BYKERS VIGGIANO\nVia Margherita di Savoia snc\n85059 VIGGIANO (PZ)\nC.F.96063460768 \nP.I. 01789510763 \nE-mail: bikersviggiano@libero.it   \nwww.asdteambykersviggiano.it"]
[]
[]
[]
[]
[]
[]
[]
["AUTORIZZAZIONE ALLENAMENTI ANNO 2023"]
[]
[]
["DATI DEL MINORE"]
[]
["Il/la sottoscritto/a",null,null,null,null,null,null,{"$f":"DATI!padre.madre","v":0},null,null,null,null,null,null,null,null,null,null,null,null,null,null,null,null,null,null,null,null,"padre/madre"]
[]
["del minore",null,null,null,{"$f":"DATI!V2&\" \"&DATI!V3","v":" "},null,null,null,null,null,null,null,null,null,null,"nato/a a",null,null,{"$f":"DATI!V4","v":0},null,null,null,null,null,null,null,null,null,"il",{"$f":"DATI!V5","v":"00:00:00"}]
[]
[]
[]
[]
["Autorizza lo stesso ad effettuare"]
["gli allenamenti su strada in bici con o senza la supervisione di un adulto di riferimento."]
[]
[]
["DICHIARAZIONE LIBERATORIA"]
[]
["alla partecipazione del mio tutelato all'attività in questione.\nCon la sottoscrizione della presente dichiaro di voler liberare ed esonerare gli organizzatori da ogni e qualsiasi responsabilità civile e penale possa derivare al partecipante. Dichiaro di essere a conoscenza dei rischi connessi agli infortuni o di danni a persone o cose verificatesi a proprio discapito o causati a terzi, impegnandomi a non esperire alcuna azione giudiziale o extragiudiziale e non elevare alcun tipo di denuncia nei confronti di chicchessia, e comunque a non sollevare alcuna eccezione riguardo alla organizzazione della suddetta attività e dei suoi rappresentanti.\n\n"]
[]
[]
[]
[]
[]
[]
[]
[]
[]
[]
[]
["Viggiano lì, "]
[]
[]
[null,null,null,null,null,null,null,null,null,null,null,null,null,null,null,null,null,null,"Firma del genitore"]

{"sheet":"autoriz.","index":3,"n_rows":55,"n_cols":28,"rows_kept":55,"cut":false,"hidden":false,"merged":[[12,37,12,43],[15,4,15,13],[15,18,15,33],[17,21,17,33],[13,4,13,13],[13,16,13,19],[13,26,13,33],[45,0,51,33],[54,18,54,29],[56,15,56,32],[17,4,17,14],[18,19,18,29],[27,0,32,33],[35,0,36,33],[38,0,39,33],[43,0,43,33],[53,5,53,12],[1,17,7,33],[20,27,20,33],[22,6,22,33],[25,0,25,33],[11,4,11,13],[11,18,11,33]]}
[]
[null,null,null,null,null,null,null,null,null,null,null,null,null,null,null,null,null,"A.S.D. TEAM BYKERS VIGGIANO\nVia Margherita di Savoia snc\n85059 VIGGIANO (PZ)\nC.F.96063460768 \nP.I. 01789510763 \nE-mail: bikersviggiano@libero.it   \nwww.asdteambykersviggiano.it"]
[]
[]
[]
[]
[]
[]
[]
["Partecipante minorenne"]
[]
["Cognome",null,null,null,{"$f":"DATI!V2","v":0},null,null,null,null,null,null,null,null,null,null,"Nome",null,null,{"$f":"DATI!V3","v":0}]
[]
["Nato/a a",null,null,null,{"$f":"DATI!V4","v":0},null,null,null,null,null,null,null,null,null,null,"il",{"$f":"DATI!V5","v":"00:00:00"},null,null,null,null,"Residente a",null,null,null,null,{"$f":"DATI!V6","v":"00:00:00"}]
[]
["Via/Piazza",null,null,null,{"$f":"DATI!V8","v":0},null,null,null,null,null,null,null,null,null,null,"Cell.:",null,null,{"$f":"DATI!V12","v":0}]
[]
["Tessera N°",null,null,null,{"$f":"DATI!V10","v":0},null,null,null,null,null,null,null,null,null,null,"Codice Fiscale",null,null,null,null,null,{"$f":"DATI!V11","v":0}]
[]
[]
["Il/la Sottoscritto/a",null,null,null,null,null,null,{"$f":"DATI!padre.madre","v":0},null,null,null,null,null,null,null,null,null,null,null,null,null,null,null,null,null,null,null,"in qualità di "]
[]
["padre/madre di ",null,null,null,null,null,{"$f":"DATI!V2&\" \"&DATI!V3","v":" "}]
[]
[]
["AUTORIZZO"]
[]
["Mio/a figlio/a a viaggiare con accompagnatori per raggiungere le sedi degli eventi e per partecipare alle gare inserite nel calendario della stagione agonistica 2023, assicurando che lo stesso è in grado di viaggiare autonomamente.\nDo il consenso, inoltre, ad eventuali controlli medici previsti dal Settore Antidoping e dalla normativa sulla Tutela della Salute.\nEsonero espressamente la Team Bykers Viggiano ed i suoi Tecnici e Collaboratori da ogni e qualsivoglia responsabilità per quanto sopra autorizzato.\n\n"]
[]
[]
[]
[]
[]
[]
["Firma del genitore"]
[]
[]
["Liberatoria Privacy:"]
["Si autorizza il trattamento dei dati personali nel rispetto di quanto disposto dal D. lgs. 196/2003 in materia di tutela dei dati personali"]
[]
[]
["Firma del genitore"]
[]
["DICHIARAZIONE LIBERATORIA"]
[]
["per la partecipazione del mio tutelato all'attività in questione.\nCon la sottoscrizione della presente dichiaro di voler liberare ed esonerare gli organizzatori da ogni e qualsiasi responsabilità civile e penale possa derivare al partecipante. Dichiaro di essere a conoscenza dei rischi connessi agli infortuni o di danni a persone o cose verificatesi a proprio discapito o causati a terzi, impegnandomi a non esperire alcuna azione giudiziale o extragiudiziale e a non elevare alcun tipo di denuncia nei confronti di chicchessia, e comunque a non sollevare alcuna eccezione riguardo alla organizzazione della suddetta attività e dei suoi rappresentanti.\n\n"]
[]
[]
[]
[]
[]
[]
[]
["Viggiano lì, "]
[null,null,null,null,null,null,null,null,null,null,null,null,null,null,null,null,null,null,"Firma del genitore"]

{"sheet":"Regol. (2)","index":4,"n_rows":29,"n_cols":3,"rows_kept":29,"cut":false,"hidden":false,"merged":[[19,0,19,2],[20,0,20,2],[21,0,21,2],[22,0,22,2],[23,0,23,2],[17,0,17,2],[18,0,18,2],[9,0,9,2],[10,0,10,2],[11,0,11,2],[16,0,16,2],[12,0,12,2],[13,0,13,2],[14,0,14,2],[15,0,15,2]]}
[]
["A.S.D. Team Bykers Viggiano"]
["Via Margherita di Savoia snc"]
["85059 Viggiano (PZ)"]
["C.F.96063460768 "]
["P.I. 01789510763                              "]
["E-mail, bikersviggiano@libero.it"]
["www.asdteambykersviggiano.it"]
[]
["REGOLAMENTO STAGIONE 2023"]
["Art. 1\nE'costituita l'associazione sportiva dilettantistica (A.S.D.) TEAM BYKERS VIGGIANO società sportiva, senza scopo di lucro, finalizzata allo svolgimento della pratica dello sport del ciclismo."]
["Art. 2\nLa società si compone di un organo direttivo che sovrintende alla stesura e all'applicazione dello statuto societario e del regolamento interno, di un numero non determinato di soci e praticanti dello sport del ciclismo nonché di personale tecnico ed amministrativo che il consiglio direttivo potrà nominare in qualsiasi momento tramite la convocazione di apposita assemblea ordinaria o straordinaria. "]
["Art. 3\nIl direttivo è presieduto dalle cariche di Presidente, Vice Presidente, Amministratore e Membri Consiglieri, nominati dalle cariche sopra menzionate, in numero stabilito dagli stessi e messo in calce a verbale di prima assemblea."]
["Art. 4\nIl Presidente viene eletto dal consenso palese dei soci fondatori e dei soci riuniti in assemblea o tramite votazione diretta effettuata con appositi seggi. La nomina sarà effettiva nel caso in cui il candidato sia stato eletto tramite consenso assembleare unanime o abbia ottenuto il 50 % più 1 dei voti degli aventi diritto. Allo stesso modo si procederà all'elezione del Vice Presidente, che può ricoprire anche la carica di Amministratore, tranne nei casi in cui il Presidente, di concerto con l'assemblea, decida di nominare lui stesso la seconda carica. Il direttivo così composto provvederà ad indicare il numero dei consiglieri da inserire nel consiglio e provvederà alla loro nomina. Il direttivo rimarrà in carica due anni."]
["Art. 5\nIl Comitato direttivo risultante dalle elezioni e dalle nomine provvederà a tutte le funzioni di cui necessita la squadra: amministrativa, contabile, gestionale. Provvederà,  tramite convocazioni di apposite assemblee, a definire le linee guida della squadra, alla gestione del materiale tecnico, alla gestione del patrimonio contabile, ad esercitare il diritto di nomina di nuovi consiglieri, a discutere e decidere l'accesso  di eventuali nuovi soci nella squadra, tramite votazione a maggioranza in ragione dei 2/3 del direttivo ed emettere i relativi verbali di assemblea di cui il sunto sarà recapitato, se richiesto, sotto forma di comunicato,  a tutti i componenti della squadra."]
["Art. 6 \nGli allenamenti ufficiali del Team sono fissate in base alla stagione e delle condizioni climatiche. All’inizio della stagione ciclistica verrà redatto il programma di allenamento dal Direttore Sportivo con indicazione del luogo e orari. Sarà cura del Direttore Sportivo comunicare con largo anticipo tramite telefono, SMS ed altro un eventuale spostamento dell’allenamento. I componenti del gruppo sportivo sono tenuti a partecipare agli allenamenti ufficiali ed attenersi alle direttive del responsabile tecnico del Team. I ciclisti che non si presentano all’allenamento per due volte consecutive, non avranno diritto a partecipare alla gara in programma. "]
["Sarà cura del Direttore Sportivo valutare la partecipazione alle gare in base alla frequenza dell’’allenamento ed al comportamento degli atleti. I componenti della squadra sono tenuti a mantenere un comportamento leale e sportivo nei confronti di tutti i soci del gruppo, ad indossare le divise sociali nelle uscite ufficiali e nelle eventuali competizioni sportive, a partecipare alla vita attiva della società ed a partecipare alle eventuali iniziative e manifestazioni che il gruppo deciderà di organizzare. \nNegli altri giorni della settimana le uscite sono libere ed i soci si allenano e si organizzano secondo disponibilità.\nSarà cura dei genitori o di chi ne fa le veci se minorenne accompagnare gli atleti presso la sede di allenamento. Per i maggiorenni è a cura dell’atleta.\nLa partecipazione ad eventi sportivi (gare e manifestazioni cicloturistiche) organizzati da terzi non è obbligatoria ma comunque importante ai fini della crescita delle attività del gruppo; consente inoltre di aumentare la visibilità della squadra e degli sponsor. \nIn occasione di manifestazioni/eventi organizzati dall’associazione, tutti i Soci sono invitati a collaborare, in base alla propria disponibilità di tempo, per contribuire fattivamente alla riuscita delle stesse. "]
["Obblighi :\n1.\tNegli allenamenti e/o uscite giornaliere è buona norma indossare le divise ufficiali. E’ tuttavia consentito l’uso di altro abbigliamento neutro (non di altre Società) onde consentire le normali operazioni di pulizia. Si invitano invece tutti i soci ad indossare sempre le maglie dell’associazione nelle gare e nelle uscite collettive (pedalate non competitive, raduni, gite) \n2.\tUtilizzare il casco protettivo e rispettare il codice della strada.\n3.\t Essere propositivo per migliorare l’andamento dell’associazione. \n4.\tEssere puntuale in occasione degli appuntamenti ciclistici. \n5.\tPartecipare quando possibile alle iniziative programmate dall’associazione, gratificando così coloro che si sono impegnati nell’organizzazione."]
["Art. 7 \nLe divise e gli accessori sono di proprietà dell’associazione; vengono consegnati in comodato d’uso. L’atleta è tenuto a mantenere in ottime condizioni la divisa e gli accessori delle quali è responsabile.\nQualora si abbandoni per qualsiasi motivo l’Associazione Sportiva, il corridore è obbligato a restituire tutto il corredo e gli accessori che gli sono stati consegnati in comodato d’uso. Nel caso questo non avvenga, si è obbligati a versare una somma pari a 200,00 €."]
["Art. 8 \n Il Consiglio Direttivo all’inizio dell’anno propone ed elabora un programma di attività da portare all’attenzione dei soci concernente: \n- l’attività agonistica (gare su MTB e ciclocross); \n- l’organizzazione di gare; \n- altre attività legate al mondo della bicicletta (corsi, pedalate promozionali, gimkane per ragazzi, ecc.). \n\nIl programma verrà esposto sul gruppo WhatsApp; eventuali variazioni di date verranno comunicate con avviso esposto sempre sul gruppo WhatsApp. \nNell’ambito del suddetto programma verranno individuate alcune competizioni su cui focalizzare la partecipazione di “gruppo”, con lo scopo di favorire l’aggregazione degli atleti. La scelta delle gare sarà effettuata prima dell’avvio della stagione agonistica d’intesa con i referenti dell’attività agonistica e verrà pubblicata sul sito Internet. "]
["Art. 9\nL'ammissione dei soci è strettamente vincolata al parere del Consiglio e non è ammessa l'ammissione a tempo determinato, fatte salve le norme sul vincolo sportivo. La qualifica di socio si perde per dimissioni, non presentazione del certificato medico/agonistico nei termini di volta in volta stabiliti, comportamenti non in linea con la lealtà sportiva e per quattro assenze domenicali consecutive non giustificate da valide motivazioni quali, lavoro, malattie, ferie o gravi problemi familiari. I provvedimenti di ammissione o di sospensione/espulsione vengono assunti a maggioranza dal Consiglio Direttivo"]
["Art. 10\nLa richiesta di trasferimento di un’atleta presso un’altra Associazione Sportiva deve essere presentata per iscritto al Direttivo, il quale valuterà la richiesta e attuerà il Regolamento ufficiale della Federazione Ciclistica Italiana."]
["Art. 11\nLe finalità del gruppo sono quelle di promuovere la sana attività sportiva della bicicletta, creando coesione tra i soci. A tale scopo le uscite di gruppo si svolgeranno in maniera tale da non creare esagerati agonismi."]
[]
["Nome e Cognome Atleta",{"$f":"DATI!V3&\" \"&DATI!V2","v":" "}]
[]
["Nome  padre/madre",{"$f":"DATI!padre.madre","v":0}]
["(Se minorenne)"]
["Luogo e data",null,"Per accettazione \n(Del genitore s minorenne)"]

{"sheet":"iscriz.magg","index":5,"n_rows":83,"n_cols":41,"rows_kept":83,"cut":false,"hidden":false,"merged":[[1,0,1,31],[13,4,13,13],[13,18,13,33],[14,37,14,43],[15,4,15,13],[15,16,15,19],[15,26,15,33],[26,2,28,33],[30,2,30,33],[46,21,46,32],[47,0,47,33],[17,4,17,13],[17,18,17,33],[19,4,19,13],[19,21,19,33],[20,19,20,29],[23,0,24,33],[34,21,34,33],[38,4,38,14],[82,4,82,13],[74,2,76,33],[79,16,80,33],[52,2,54,33],[57,16,58,33],[63,2,65,33],[68,16,69,33]]}
[]
["DOMANDA DI ISCRIZIONE STAGIONE 2023\nAGONISTI - MAGGIORENNI"]
[]
[]
[null,null,null,null,null,null,null,null,null,null,null,null,null,null,null,null,null,null,null,null,"Spett.le"]
[null,null,null,null,null,null,null,null,null,null,null,null,null,null,null,null,null,null,null,null,"Consiglio Direttivo"]
[null,null,null,null,null,null,null,null,null,null,null,null,null,null,null,null,null,null,null,null,"A.S.D. TEAM BYKERS VIGGIANO"]
[null,null,null,null,null,null,null,null,null,null,null,null,null,null,null,null,null,null,null,null,"VIA MARGHERITA DI SAVOIA, SNC - "]
[null,null,null,null,null,null,null,null,null,null,null,null,null,null,null,null,null,null,null,null,"85059 VIGGIANO (PZ)"]
[]
[null,null,null,null,null,null,null,null,null,null,null,null,null,null,null,null,null,null,null,null,null,null,null,null,null,null,null,null,null,null,null,null,null,null,null,null,null,null,null,null,"Cliccando \"Salva\""]
["DATI DELL'ATLETA RICHIEDENTE",null,null,null,null,null,null,null,null,null,null,null,null,null,null,null,null,null,null,null,null,null,null,null,null,null,null,null,null,null,null,null,null,null,null,null,"Verrà salvata una copia in pdf sul tuo Desktop"]
[]
["Cognome",null,null,null,{"$f":"DATI!V2","v":0},null,null,null,null,null,null,null,null,null,null,"Nome",null,null,{"$f":"DATI!V3","v":0}]
[]
["Nato/a a",null,null,null,{"$f":"DATI!V4","v":0},null,null,null,null,null,null,null,null,null,null,"il",{"$f":"DATI!il.giorno","v":"00:00:00"},null,null,null,null,"Residente a",null,null,null,null,{"$f":"DATI!V6","v":"00:00:00"}]
[]
["Via/Piazza",null,null,null,{"$f":"DATI!V8","v":0},null,null,null,null,null,null,null,null,null,null,"Cell.:",null,null,{"$f":"DATI!V12","v":0}]
[]
["Tessera N°",null,null,null,{"$f":"DATI!V10","v":0},null,null,null,null,null,null,null,null,null,null,"Codice Fiscale",null,null,null,null,null,{"$f":"DATI!V11","v":0}]
[]
[]
[]
["CHIEDE al Direttivo dell'associazione A.S.D. Team Bykers Viggiano che  venga ammesso/a nella qualità di ciclista non professionista, e, all'uopo DICHIARA"]
[]
[]
[null,"•","Di conoscere lo Statuto ed il regolamento della stessa Associazione e della F.C.I. e di accettarli integralmente."]
[]
[]
[]
[null,"•","Di conoscere e concorrere a rispettare il regolamento predisposto da competenti organi del Coni e della F.C.I. in materia di antidoping.\n\n"]
[]
[]
[]
["Telefono",null,null,null,null,null,null,null,null,null,null,null,null,null,null,null,null,"Cellulare",null,null,null,{"$f":"cellulare","v":0}]
[]
["E-mail",null,null,null,{"$f":"mail","v":0}]
[]
["Data",null,null,null,null,null,null,null,null,null,null,null,null,null,null,null,null,"Firma"]
[]
[]
[]
[]
[]
[]
[]
[]
["CONSENSO AL TRATTAMENTO DEI DATI PERSONALI"]
[]
["Avendo ricevuto idoneità informativa ai sensi dell'art. 13 del D.Lgs. 196/2003"]
[]
["ACCONSENTE"]
[null,"1.","Al trattamento dei propri dati personali, ivi inclusi quelli di natura sensibile, per lo svolgimento delle operazioni connesse alle procedure di affiliazione F.C.I., e di gestione del rapporto assicurativo."]
[]
[]
[]
[]
[null,null,null,null,null,null,null,null,null,null,null,null,null,null,null,null,"Firma dell'interessato (o del soggetto che esercita la potestà legali ai sensi delle disposizioni di legge): "]
[]
[]
[]
[]
[]
[null,"2.","Al trattamento dei propri dati personali per l'invio di comunicazioni di natura promozionale inerenti ai servizi ed alle iniziative proposte a qualsiasi livello F.C.I.e dagli Enti e soggetti privati collegati alle manifestazioni sportive"]
[]
[]
[]
[]
[null,null,null,null,null,null,null,null,null,null,null,null,null,null,null,null,"Firma dell'interessato (o del soggetto che esercita la potestà legali ai sensi delle disposizioni di legge): "]
[]
[]
[]
[]
[]
[null,"3.","Anche ai sensi degli artt. 96 e 97 della L. 633/1941, all'utilizzo del materiale audio e video interviste, filmati, fotografie diapositive) realizzato nel corso di eventi e/o manifestazioni sportive allo scopo di promuovere sia le attività del Team Bykers Viggiano, più in generale, l'esercizio della pratica sportiva."]
[]
[]
[]
[]
[null,null,null,null,null,null,null,null,null,null,null,null,null,null,null,null,"Firma dell'interessato (o del soggetto che esercita la potestà legali ai sensi delle disposizioni di legge): "]
[]
[]
["Viggiano lì"]

{"sheet":"liber.magg","index":6,"n_rows":44,"n_cols":19,"rows_kept":44,"cut":false,"hidden":false,"merged":[[1,17,7,33],[9,0,9,33],[14,28,14,33],[16,4,16,13],[16,18,16,26],[16,29,16,33],[43,18,43,29],[45,15,45,32],[17,37,17,43],[18,0,18,33],[21,0,21,33],[22,0,22,33],[25,0,25,33],[27,0,38,33],[40,5,40,12]]}
[]
[null,null,null,null,null,null,null,null,null,null,null,null,null,null,null,null,null,"A.S.D. TEAM BYKERS VIGGIANO\nVia Margherita di Savoia snc\n85059 VIGGIANO (PZ)\nC.F.96063460768 \nP.I. 01789510763 \nE-mail: bikersviggiano@libero.it   \nwww.asdteambykersviggiano.it"]
[]
[]
[]
[]
[]
[]
[]
["AUTORIZZAZIONE ALLENAMENTI ANNO 2023"]
[]
[]
["DATI DELL'ATLETA DICHIARANTE"]
[]
["Il/la sottoscritto/a",null,null,null,null,null,null,{"$f":"DATI!V2&\" \"&DATI!V3","v":" "}]
[]
["nato/a a",null,null,null,{"$f":"DATI!V4","v":0},null,null,null,null,null,null,null,null,null,null,null,"il",null,{"$f":"DATI!V5","v":"00:00:00"}]
[]
[]
[]
[]
["DICHIARA DI ESSERE DISPOSTO"]
["ad effettuare allenamenti su strada in bici con o senza la supervisione di un adulto di riferimento."]
[]
[]
["DICHIARAZIONE LIBERATORIA"]
[]
["alla partecipazione all'attività in questione.\nCon la sottoscrizione della presente dichiaro di voler liberare ed esonerare gli organizzatori da ogni e qualsiasi responsabilità civile e penale possa derivare al partecipante. Dichiaro di essere a conoscenza dei rischi connessi agli infortuni o di danni a persone o cose verificatesi a proprio discapito o causati a terzi, impegnandomi a non esperire alcuna azione giudiziale o extragiudiziale e non elevare alcun tipo di denuncia nei confronti di chicchessia, e comunque a non sollevare alcuna eccezione riguardo alla organizzazione della suddetta attività e dei suoi rappresentanti.\n\n"]
[]
[]
[]
[]
[]
[]
[]
[]
[]
[]
[]
[]
["Viggiano lì, "]
[]
[]
[null,null,null,null,null,null,null,null,null,null,null,null,null,null,null,null,null,null,"Firma del dichiarante"]

{"sheet":"autor.magg","index":7,"n_rows":53,"n_cols":27,"rows_kept":53,"cut":false,"hidden":false,"merged":[[12,37,12,43],[13,4,13,13],[13,16,13,19],[13,26,13,33],[15,4,15,13],[15,18,15,33],[17,4,17,14],[17,21,17,33],[18,19,18,29],[1,17,7,33],[11,4,11,13],[11,18,11,33],[43,0,49,33],[52,18,52,29],[54,15,54,32],[22,0,22,33],[24,0,30,33],[33,0,34,33],[36,0,37,33],[41,0,41,33],[51,5,51,12]]}
[]
[null,null,null,null,null,null,null,null,null,null,null,null,null,null,null,null,null,"A.S.D. TEAM BYKERS VIGGIANO\nVia Margherita di Savoia snc\n85059 VIGGIANO (PZ)\nC.F.96063460768 \nP.I. 01789510763 \nE-mail: bikersviggiano@libero.it   \nwww.asdteambykersviggiano.it"]
[]
[]
[]
[]
[]
[]
[]
["Partecipante "]
[]
["Cognome",null,null,null,{"$f":"DATI!V2","v":0},null,null,null,null,null,null,null,null,null,null,"Nome",null,null,{"$f":"DATI!V3","v":0}]
[]
["Nato/a a",null,null,null,{"$f":"DATI!V4","v":0},null,null,null,null,null,null,null,null,null,null,"il",{"$f":"DATI!V5","v":"00:00:00"},null,null,null,null,"Residente a",null,null,null,null,{"$f":"DATI!V6","v":"00:00:00"}]
[]
["Via/Piazza",null,null,null,{"$f":"DATI!V8","v":0},null,null,null,null,null,null,null,null,null,null,"Cell.:",null,null,{"$f":"DATI!V12","v":0}]
[]
["Tessera N°",null,null,null,{"$f":"DATI!V10","v":0},null,null,null,null,null,null,null,null,null,null,"Codice Fiscale",null,null,null,null,null,{"$f":"DATI!V11","v":0}]
[]
[]
[]
[]
["AUTORIZZO"]
[]
["la Società a farmi  viaggiare con accompagnatori per raggiungere le sedi degli eventi e per partecipare alle gare inserite nel calendario della stagione agonistica 2023.\nDo il consenso, inoltre, ad eventuali controlli medici previsti dal Settore Antidoping e dalla normativa sulla Tutela della Salute.\nEsonero espressamente la Team Bykers Viggiano ed i suoi Tecnici e Collaboratori da ogni e qualsivoglia responsabilità per quanto sopra autorizzato.\n\n"]
[]
[]
[]
[]
[]
[]
[]
["Firma del dichiarante"]
[]
[]
["Liberatoria Privacy:"]
["Si autorizza il trattamento dei dati personali nel rispetto di quanto disposto dal D. lgs. 196/2003 in materia di tutela dei dati personali"]
[]
[]
["Firma del dichiarante"]
[]
["DICHIARAZIONE LIBERATORIA"]
[]
["alla partecipazione all'attività in questione.\nCon la sottoscrizione della presente dichiaro di voler liberare ed esonerare gli organizzatori da ogni e qualsiasi responsabilità civile e penale possa derivare al partecipante. Dichiaro di essere a conoscenza dei rischi connessi agli infortuni o di danni a persone o cose verificatesi a proprio discapito o causati a terzi, impegnandomi a non esperire alcuna azione giudiziale o extragiudiziale e a non elevare alcun tipo di denuncia nei confronti di chicchessia, e comunque a non sollevare alcuna eccezione riguardo alla organizzazione della suddetta attività e dei suoi rappresentanti.\n\n"]
[]
[]
[]
[]
[]
[]
[]
["Viggiano lì, "]
[null,null,null,null,null,null,null,null,null,null,null,null,null,null,null,null,null,null,"Firma del dichiarante"]

{"sheet":"Regol. (3)","index":8,"n_rows":27,"n_cols":3,"rows_kept":27,"cut":false,"hidden":false,"merged":[[14,0,14,2],[9,0,9,2],[10,0,10,2],[11,0,11,2],[12,0,12,2],[13,0,13,2],[21,0,21,2],[22,0,22,2],[23,0,23,2],[15,0,15,2],[16,0,16,2],[17,0,17,2],[18,0,18,2],[19,0,19,2],[20,0,20,2]]}
[]
["A.S.D. Team Bykers Viggiano"]
["Via Margherita di Savoia snc"]
["85059 Viggiano (PZ)"]
["C.F.96063460768 "]
["P.I. 01789510763                              "]
["E-mail, bikersviggiano@libero.it"]
["www.asdteambykersviggiano.it"]
[]
["REGOLAMENTO STAGIONE 2023"]
["Art. 1\nE'costituita l'associazione sportiva dilettantistica (A.S.D.) TEAM BYKERS VIGGIANO società sportiva, senza scopo di lucro, finalizzata allo svolgimento della pratica dello sport del ciclismo."]
["Art. 2\nLa società si compone di un organo direttivo che sovrintende alla stesura e all'applicazione dello statuto societario e del regolamento interno, di un numero non determinato di soci e praticanti dello sport del ciclismo nonché di personale tecnico ed amministrativo che il consiglio direttivo potrà nominare in qualsiasi momento tramite la convocazione di apposita assemblea ordinaria o straordinaria. "]
["Art. 3\nIl direttivo è presieduto dalle cariche di Presidente, Vice Presidente, Amministratore e Membri Consiglieri, nominati dalle cariche sopra menzionate, in numero stabilito dagli stessi e messo in calce a verbale di prima assemblea."]
["Art. 4\nIl Presidente viene eletto dal consenso palese dei soci fondatori e dei soci riuniti in assemblea o tramite votazione diretta effettuata con appositi seggi. La nomina sarà effettiva nel caso in cui il candidato sia stato eletto tramite consenso assembleare unanime o abbia ottenuto il 50 % più 1 dei voti degli aventi diritto. Allo stesso modo si procederà all'elezione del Vice Presidente, che può ricoprire anche la carica di Amministratore, tranne nei casi in cui il Presidente, di concerto con l'assemblea, decida di nominare lui stesso la seconda carica. Il direttivo così composto provvederà ad indicare il numero dei consiglieri da inserire nel consiglio e provvederà alla loro nomina. Il direttivo rimarrà in carica due anni."]
["Art. 5\nIl Comitato direttivo risultante dalle elezioni e dalle nomine provvederà a tutte le funzioni di cui necessita la squadra: amministrativa, contabile, gestionale. Provvederà,  tramite convocazioni di apposite assemblee, a definire le linee guida della squadra, alla gestione del materiale tecnico, alla gestione del patrimonio contabile, ad esercitare il diritto di nomina di nuovi consiglieri, a discutere e decidere l'accesso  di eventuali nuovi soci nella squadra, tramite votazione a maggioranza in ragione dei 2/3 del direttivo ed emettere i relativi verbali di assemblea di cui il sunto sarà recapitato, se richiesto, sotto forma di comunicato,  a tutti i componenti della squadra."]
["Art. 6 \nGli allenamenti ufficiali del Team sono fissate in base alla stagione e delle condizioni climatiche. All’inizio della stagione ciclistica verrà redatto il programma di allenamento dal Direttore Sportivo con indicazione del luogo e orari. Sarà cura del Direttore Sportivo comunicare con largo anticipo tramite telefono, SMS ed altro un eventuale spostamento dell’allenamento. I componenti del gruppo sportivo sono tenuti a partecipare agli allenamenti ufficiali ed attenersi alle direttive del responsabile tecnico del Team. I ciclisti che non si presentano all’allenamento per due volte consecutive, non avranno diritto a partecipare alla gara in programma. "]
["Sarà cura del Direttore Sportivo valutare la partecipazione alle gare in base alla frequenza dell’’allenamento ed al comportamento degli atleti. I componenti della squadra sono tenuti a mantenere un comportamento leale e sportivo nei confronti di tutti i soci del gruppo, ad indossare le divise sociali nelle uscite ufficiali e nelle eventuali competizioni sportive, a partecipare alla vita attiva della società ed a partecipare alle eventuali iniziative e manifestazioni che il gruppo deciderà di organizzare. \nNegli altri giorni della settimana le uscite sono libere ed i soci si allenano e si organizzano secondo disponibilità.\nSarà cura dei genitori o di chi ne fa le veci se minorenne accompagnare gli atleti presso la sede di allenamento. Per i maggiorenni è a cura dell’atleta.\nLa partecipazione ad eventi sportivi (gare e manifestazioni cicloturistiche) organizzati da terzi non è obbligatoria ma comunque importante ai fini della crescita delle attività del gruppo; consente inoltre di aumentare la visibilità della squadra e degli sponsor. \nIn occasione di manifestazioni/eventi organizzati dall’associazione, tutti i Soci sono invitati a collaborare, in base alla propria disponibilità di tempo, per contribuire fattivamente alla riuscita delle stesse. "]
["Obblighi :\n1.\tNegli allenamenti e/o uscite giornaliere è buona norma indossare le divise ufficiali. E’ tuttavia consentito l’uso di altro abbigliamento neutro (non di altre Società) onde consentire le normali operazioni di pulizia. Si invitano invece tutti i soci ad indossare sempre le maglie dell’associazione nelle gare e nelle uscite collettive (pedalate non competitive, raduni, gite) \n2.\tUtilizzare il casco protettivo e rispettare il codice della strada.\n3.\t Essere propositivo per migliorare l’andamento dell’associazione. \n4.\tEssere puntuale in occasione degli appuntamenti ciclistici. \n5.\tPartecipare quando possibile alle iniziative programmate dall’associazione, gratificando così coloro che si sono impegnati nell’organizzazione."]
["Art. 7 \nLe divise e gli accessori sono di proprietà dell’associazione; vengono consegnati in comodato d’uso. L’atleta è tenuto a mantenere in ottime condizioni la divisa e gli accessori delle quali è responsabile.\nQualora si abbandoni per qualsiasi motivo l’Associazione Sportiva, il corridore è obbligato a restituire tutto il corredo e gli accessori che gli sono stati consegnati in comodato d’uso. Nel caso questo non avvenga, si è obbligati a versare una somma pari a 200,00 €."]
["Art. 8 \n Il Consiglio Direttivo all’inizio dell’anno propone ed elabora un programma di attività da portare all’attenzione dei soci concernente: \n- l’attività agonistica (gare su MTB e ciclocross); \n- l’organizzazione di gare; \n- altre attività legate al mondo della bicicletta (corsi, pedalate promozionali, gimkane per ragazzi, ecc.). \n\nIl programma verrà esposto sul gruppo WhatsApp; eventuali variazioni di date verranno comunicate con avviso esposto sempre sul gruppo WhatsApp. \nNell’ambito del suddetto programma verranno individuate alcune competizioni su cui focalizzare la partecipazione di “gruppo”, con lo scopo di favorire l’aggregazione degli atleti. La scelta delle gare sarà effettuata prima dell’avvio della stagione agonistica d’intesa con i referenti dell’attività agonistica e verrà pubblicata sul sito Internet. "]
["Art. 9\nL'ammissione dei soci è strettamente vincolata al parere del Consiglio e non è ammessa l'ammissione a tempo determinato, fatte salve le norme sul vincolo sportivo. La qualifica di socio si perde per dimissioni, non presentazione del certificato medico/agonistico nei termini di volta in volta stabiliti, comportamenti non in linea con la lealtà sportiva e per quattro assenze domenicali consecutive non giustificate da valide motivazioni quali, lavoro, malattie, ferie o gravi problemi familiari. I provvedimenti di ammissione o di sospensione/espulsione vengono assunti a maggioranza dal Consiglio Direttivo"]
["Art. 10\nLa richiesta di trasferimento di un’atleta presso un’altra Associazione Sportiva deve essere presentata per iscritto al Direttivo, il quale valuterà la richiesta e attuerà il Regolamento ufficiale della Federazione Ciclistica Italiana."]
["Art. 11\nLe finalità del gruppo sono quelle di promuovere la sana attività sportiva della bicicletta, creando coesione tra i soci. A tale scopo le uscite di gruppo si svolgeranno in maniera tale da non creare esagerati agonismi."]
[]
["Nome e Cognome Atleta",{"$f":"DATI!V3&\" \"&DATI!V2","v":" "}]
[]
["Luogo e data",null,"Per accettazione "]